[Event "XXXI Torre Memorial 2019"]
[Site "Merida"]
[Date "2019.12.16"]
[Round "5.11"]
[White "Kevlishvili, Robby"]
[Black "Vitier Vazquez, Cristian"]
[Result "1-0"]
[ECO "C03"]
[WhiteElo "2457"]
[BlackElo "2405"]
[Annotator "ChessBase"]
[PlyCount "89"]
[EventDate "2019.12.13"]
[EventType "swiss"]
[EventCountry "MEX"]
[SourceTitle "playchess.com"]
[Source "ChessBase"]
[SourceQuality "1"]
[TimeControl "5400+30"]

1. e4 {[%emt 0:03:21]} e6 {[%emt 0:02:16]} 2. d4 {[%emt 0:00:07]} d5 {[%emt 0:00:13]} 3. Nd2 {[%emt 0:00:04]} Be7 {[%emt 0:00:28]} 4. Ngf3 {[%emt 0:00:14]} Nf6 {[%emt 0:00:13]} 5. e5 {[%emt 0:00:15]} Nfd7 {[%emt 0:00:08]} 6. Bd3 {[%emt 0:00:13]} c5 {[%emt 0:00:08]} 7. c3 {[%emt 0:00:06]} Nc6 {[%emt 0:00:05]} 8. O-O {[%emt 0:00:44]} g5 {[%emt 0:00:06]} 9. b4 {[%emt 0:02:44]} cxb4 {[%emt 0:00:52]} 10. cxb4 {[%emt 0:00:21]} Nxb4 {[%emt 0:00:07]} 11. Be2 {[%emt 0:01:04]} g4 {[%emt 0:06:03]} 12. Ne1 {[%emt 0:00:16]} h5 {[%emt 0:00:05]} 13. Nb3 {[%emt 0:01:40]} Nb6 {[%emt 0:01:39]} 14. f3 {[%emt 0:02:20]} g3 {[%emt 0:00:09]} 15. hxg3 {[%emt 0:01:12]} Na4 {[%emt 0:15:37]} 16. Bd2 {[%emt 0:10:59]} Bd7 {[%emt 0:02:31]} 17. a3 {[%emt 0:08:33]} Nc6 {[%emt 0:01:17]} 18. Rb1 {[%emt 0:00:09]} a6 {[%emt 0:24:00]} 19. f4 {[%emt 0:04:36]} b5 {[%emt 0:02:16]} 20. Bxh5 {[%emt 0:02:33]} Bxa3 {[%emt 0:01:36]} 21. g4 {[%emt 0:03:55]} Qe7 {[%emt 0:13:47]} 22. Nf3 {[%emt 0:01:12]} O-O-O {[%emt 0:05:07]} 23. Be1 {[%emt 0:02:31]} Rdg8 {[%emt 0:02:05]} 24. Bh4 {[%emt 0:03:47]} Qf8 {[%emt 0:00:09]} 25. Qc2 {[%emt 0:01:39]} Kb8 {[%emt 0:02:08]} 26. Na5 {[%emt 0:02:25]} Nxa5 {[%emt 0:05:38]} 27. Qxa4 {[%emt 0:00:04]} Nc4 {[%emt 0:00:10]} 28. Qxa6 {[%emt 0:00:21]} b4 {[%emt 0:01:53]} 29. Rb3 {[%emt 0:01:59]} Qc8 {[%emt 0:01:30]} 30. Rxa3 {[%emt 0:00:31]} Nxa3 {[%emt 0:00:07]} 31. Qd6+ {[%emt 0:00:03]} Qc7 {[%emt 0:00:41]} 32. Qxb4+ {[%emt 0:00:07]} Nb5 {[%emt 0:00:03]} 33. Bf6 {[%emt 0:00:23]} Qc4 {[%emt 0:06:33]} 34. Qxc4 {[%emt 0:07:41]} dxc4 {[%emt 0:00:06]} 35. Bxf7 {[%emt 0:01:33]} Rf8 {[%emt 0:00:34]} 36. Bxh8 {[%emt 0:00:27]} Rxf7 {[%emt 0:00:02]} 37. Bf6 {[%emt 0:00:34]} Bc6 {[%emt 0:00:55]} 38. f5 {[%emt 0:02:58]} exf5 {[%emt 0:01:08]} 39. gxf5 {[%emt 0:00:34]} c3 {[%emt 0:00:05]} 40. Rc1 {[%emt 0:01:42]} Ra7 {[%emt 0:03:29]} 41. e6 {[%emt 0:00:54]} Ra2 {[%emt 0:00:37]} 42. Be5+ {[%emt 0:00:36]} Kb7 {[%emt 0:01:32]} 43. f6 {[%emt 0:00:20]} Bd5 {[%emt 0:00:07]} 44. f7 {[%emt 0:00:09]} Ra8 {[%emt 0:00:13]} 45. Bg7 {[%emt 0:00:13]} 1-0

[Event "XXXI Torre Memorial 2019"]
[Site "Merida"]
[Date "2019.12.16"]
[Round "5.12"]
[White "Diaz Perez, Michel Alejandro"]
[Black "Diaz Rosas, Julio Cesar"]
[Result "1/2-1/2"]
[ECO "B92"]
[WhiteElo "2455"]
[BlackElo "2365"]
[Annotator "ChessBase"]
[PlyCount "184"]
[EventDate "2019.12.13"]
[EventType "swiss"]
[EventCountry "MEX"]
[SourceTitle "playchess.com"]
[Source "ChessBase"]
[SourceQuality "1"]
[TimeControl "5400+30"]

1. e4 {[%emt 0:00:00]} c5 {[%emt 0:07:42]} 2. Nf3 {[%emt 0:00:02]} d6 {[%emt 0:00:17]} 3. d4 {[%emt 0:00:09]} cxd4 {[%emt 0:00:08]} 4. Nxd4 {[%emt 0:00:03]} Nf6 {[%emt 0:00:06]} 5. Nc3 {[%emt 0:00:05]} a6 {[%emt 0:00:03]} 6. Be2 {[%emt 0:00:09]} e5 {[%emt 0:01:47]} 7. Nb3 {[%emt 0:00:08]} Be7 {[%emt 0:00:07]} 8. Be3 {[%emt 0:00:16]} Be6 {[%emt 0:00:25]} 9. O-O {[%emt 0:00:16]} O-O {[%emt 0:00:07]} 10. Qd2 {[%emt 0:00:05]} Nbd7 {[%emt 0:01:06]} 11. a4 {[%emt 0:00:17]} Nb6 {[%emt 0:00:09]} 12. a5 {[%emt 0:00:35]} Nc4 {[%emt 0:00:05]} 13. Bxc4 {[%emt 0:00:05]} Bxc4 {[%emt 0:00:05]} 14. Rfd1 {[%emt 0:00:16]} Rc8 {[%emt 0:00:34]} 15. f3 {[%emt 0:00:36]} d5 {[%emt 0:08:59]} 16. Nxd5 {[%emt 0:08:04]} Nxd5 {[%emt 0:01:14]} 17. exd5 {[%emt 0:00:05]} Qd6 {[%emt 0:05:29]} 18. Bb6 {[%emt 0:13:25]} h6 {[%emt 0:06:55]} 19. Rac1 {[%emt 0:09:33]} Bg5 {[%emt 0:05:24]} 20. Be3 {[%emt 0:00:38]} Bxe3+ {[%emt 0:00:04]} 21. Qxe3 {[%emt 0:00:06]} Rfd8 {[%emt 0:00:21]} 22. Rd2 {[%emt 0:09:46]} Bxb3 {[%emt 0:05:12]} 23. Qxb3 {[%emt 0:00:13]} Qc5+ {[%emt 0:00:06]} 24. Kh1 {[%emt 0:02:06]} Qxa5 {[%emt 0:00:03]} 25. Rcd1 {[%emt 0:00:11]} Qc7 {[%emt 0:12:36]} 26. Qe3 {[%emt 0:03:24]} Qd6 {[%emt 0:01:22]} 27. Qe4 {[%emt 0:01:03]} b5 {[%emt 0:02:46]} 28. Re1 {[%emt 0:01:57]} Rc5 {[%emt 0:00:32]} 29. Red1 {[%emt 0:01:08]} Rc4 {[%emt 0:01:58]} 30. Qe2 {[%emt 0:00:54]} Rc5 {[%emt 0:08:40]} 31. h3 {[%emt 0:01:19]} b4 {[%emt 0:00:45]} 32. Qe4 {[%emt 0:02:28]} a5 {[%emt 0:00:08]} 33. b3 {[%emt 0:00:39]} Kh8 {[%emt 0:04:12]} 34. h4 {[%emt 0:03:22]} Kg8 {[%emt 0:00:22]} 35. h5 {[%emt 0:00:29]} Kh8 {[%emt 0:00:06]} 36. g4 {[%emt 0:02:54]} Kg8 {[%emt 0:06:25]} 37. Qf5 {[%emt 0:01:16]} f6 {[%emt 0:05:47]} 38. Qg6 {[%emt 0:01:22]} Rc3 {[%emt 0:02:21]} 39. Kg2 {[%emt 0:00:33]} Re3 {[%emt 0:01:17]} 40. Qf5 {[%emt 0:02:11]} Rc3 {[%emt 0:00:02]} 41. Qe4 {[%emt 0:01:38]} Rc5 {[%emt 0:00:19]} 42. Qe2 {[%emt 0:00:09]} Kh8 {[%emt 0:00:31]} 43. Rd3 {[%emt 0:01:19]} Kg8 {[%emt 0:00:42]} 44. R1d2 {[%emt 0:00:06]} Kh8 {[%emt 0:00:40]} 45. Qe4 {[%emt 0:00:06]} Rdc8 {[%emt 0:00:51]} 46. Qe2 {[%emt 0:01:22]} Rd8 {[%emt 0:00:10]} 47. Kf1 {[%emt 0:00:07]} Rc7 {[%emt 0:08:58]} 48. Qf2 {[%emt 0:05:42]} Qa6 {[%emt 0:00:42]} 49. Qe2 {[%emt 0:00:32]} Rd6 {[%emt 0:02:06]} 50. Qe4 {[%emt 0:01:55]} Qc8 {[%emt 0:01:02]} 51. Qe2 {[%emt 0:01:55]} Rc5 {[%emt 0:01:12]} 52. Ke1 {[%emt 0:00:19]} Qa8 {[%emt 0:01:42]} 53. Qe4 {[%emt 0:00:07]} Rc8 {[%emt 0:00:16]} 54. Kd1 {[%emt 0:02:33]} Rcd8 {[%emt 0:00:02]} 55. Kc1 {[%emt 0:01:59]} a4 {[%emt 0:00:34]} 56. Qxb4 {[%emt 0:01:58]} axb3 {[%emt 0:00:15]} 57. Rxb3 {[%emt 0:01:51]} Rxd5 {[%emt 0:01:06]} 58. Rxd5 {[%emt 0:00:53]} Qxd5 {[%emt 0:01:21]} 59. Rd3 {[%emt 0:00:05]} Qa8 {[%emt 0:00:07]} 60. Rxd8+ {[%emt 0:00:16]} Qxd8 {[%emt 0:00:02]} 61. Qd2 {[%emt 0:00:36]} Qa8 {[%emt 0:00:42]} 62. Qd3 {[%emt 0:00:08]} Kg8 {[%emt 0:01:05]} 63. c4 {[%emt 0:00:10]} Kf7 {[%emt 0:00:15]} 64. Qd7+ {[%emt 0:05:21]} Kf8 {[%emt 0:00:02]} 65. Qd6+ {[%emt 0:00:22]} Kf7 {[%emt 0:00:42]} 66. c5 {[%emt 0:00:29]} Qxf3 {[%emt 0:01:02]} 67. Qd7+ {[%emt 0:00:05]} Kf8 {[%emt 0:00:05]} 68. c6 {[%emt 0:00:08]} Qa3+ {[%emt 0:00:03]} 69. Kc2 {[%emt 0:00:35]} Qe7 {[%emt 0:00:14]} 70. Qb7 {[%emt 0:01:10]} Ke8 {[%emt 0:00:46]} 71. Qb8+ {[%emt 0:00:15]} Kf7 {[%emt 0:00:07]} 72. c7 {[%emt 0:00:06]} Qc5+ {[%emt 0:00:07]} 73. Kb2 {[%emt 0:00:22]} Qd4+ {[%emt 0:00:32]} 74. Ka3 {[%emt 0:00:17]} Qa1+ {[%emt 0:00:11]} 75. Kb4 {[%emt 0:00:03]} Qb2+ {[%emt 0:00:10]} 76. Ka5 {[%emt 0:00:17]} Qa3+ {[%emt 0:00:18]} 77. Kb5 {[%emt 0:02:11]} Qb3+ {[%emt 0:00:04]} 78. Kc5 {[%emt 0:00:44]} Qc3+ {[%emt 0:00:06]} 79. Kd5 {[%emt 0:00:57]} Qd4+ {[%emt 0:00:34]} 80. Kc6 {[%emt 0:00:06]} Qc4+ {[%emt 0:00:09]} 81. Kb6 {[%emt 0:00:29]} Qb4+ {[%emt 0:00:06]} 82. Ka6 {[%emt 0:00:06]} Qa4+ {[%emt 0:00:09]} 83. Kb6 {[%emt 0:00:54]} Qb4+ {[%emt 0:00:02]} 84. Kc6 {[%emt 0:00:15]} Qc4+ {[%emt 0:00:05]} 85. Kb7 {[%emt 0:00:34]} Qb5+ {[%emt 0:00:07]} 86. Ka7 {[%emt 0:00:06]} Qa5+ {[%emt 0:00:03]} 87. Kb7 {[%emt 0:00:03]} Qb5+ {[%emt 0:00:03]} 88. Kc8 {[%emt 0:00:41]} Qe8+ {[%emt 0:00:06]} 89. Kb7 {[%emt 0:00:02]} Qb5+ {[%emt 0:00:05]} 90. Ka8 {[%emt 0:01:41]} Qa6+ {[%emt 0:00:03]} 91. Qa7 {[%emt 0:00:04]} Qc8+ {[%emt 0:00:05]} 92. Qb8 {[%emt 0:00:02]} Qa6+ {[%emt 0:00:04]} 1/2-1/2

[Event "XXXI Torre Memorial 2019"]
[Site "Merida"]
[Date "2019.12.16"]
[Round "5.13"]
[White "Kambrath, Yannick"]
[Black "Ramirez, Alejandro"]
[Result "1/2-1/2"]
[ECO "E47"]
[WhiteElo "2371"]
[BlackElo "2589"]
[Annotator "ChessBase"]
[PlyCount "81"]
[EventDate "2019.12.13"]
[EventType "swiss"]
[EventCountry "MEX"]
[SourceTitle "playchess.com"]
[Source "ChessBase"]
[SourceQuality "1"]
[TimeControl "5400+30"]

1. d4 {[%emt 0:02:03]} Nf6 {[%emt 0:00:00]} 2. c4 {[%emt 0:00:17]} e6 {[%emt 0:00:00]} 3. Nc3 {[%emt 0:02:06]} Bb4 {[%emt 0:00:04]} 4. e3 {[%emt 0:00:30]} O-O {[%emt 0:00:13]} 5. Bd3 {[%emt 0:00:02]} Re8 {[%emt 0:00:34]} 6. Nge2 {[%emt 0:01:37]} d5 {[%emt 0:01:59]} 7. O-O {[%emt 0:01:00]} Nbd7 {[%emt 0:00:31]} 8. cxd5 {[%emt 0:14:15]} exd5 {[%emt 0:00:07]} 9. Qb3 {[%emt 0:00:54]} Bd6 {[%emt 0:00:16]} 10. Nxd5 {[%emt 0:14:40]} Nxd5 {[%emt 0:00:41]} 11. Qxd5 {[%emt 0:01:06]} Nc5 {[%emt 0:00:03]} 12. Qc4 {[%emt 0:07:42]} Be6 {[%emt 0:28:56]} 13. Bxh7+ {[%emt 0:07:15]} Kh8 {[%emt 0:01:46]} 14. Qc2 {[%emt 0:00:59]} Qh4 {[%emt 0:01:14]} 15. Nf4 {[%emt 0:03:50]} Bxf4 {[%emt 0:06:58]} 16. exf4 {[%emt 0:00:52]} Bd5 {[%emt 0:00:34]} 17. Bf5 {[%emt 0:17:14]} Ne6 {[%emt 0:05:54]} 18. Qc3 {[%emt 0:02:08]} Rad8 {[%emt 0:05:56]} 19. Rd1 {[%emt 0:05:13]} Qh5 {[%emt 0:06:46]} 20. Bc2 {[%emt 0:03:27]} Rd6 {[%emt 0:18:01]} 21. h3 {[%emt 0:09:26]} Rc6 {[%emt 0:00:15]} 22. Qd3 {[%emt 0:01:34]} Nxd4 {[%emt 0:05:20]} 23. Qxd4 {[%emt 0:00:01]} Rxc2 {[%emt 0:00:05]} 24. Be3 {[%emt 0:02:55]} c6 {[%emt 0:00:33]} 25. f5 {[%emt 0:00:40]} Qxf5 {[%emt 0:04:07]} 26. Rd2 {[%emt 0:00:17]} Re4 {[%emt 0:07:28]} 27. Qd3 {[%emt 0:00:45]} Rxd2 {[%emt 0:00:05]} 28. Qxd2 {[%emt 0:00:03]} Rc4 {[%emt 0:00:09]} 29. Rc1 {[%emt 0:00:57]} Qg6 {[%emt 0:00:01]} 30. f3 {[%emt 0:00:13]} Rxc1+ {[%emt 0:03:28]} 31. Qxc1 {[%emt 0:00:01]} Bxf3 {[%emt 0:00:05]} 32. Qf1 {[%emt 0:00:07]} Bd5 {[%emt 0:00:19]} 33. Bxa7 {[%emt 0:00:19]} Bxa2 {[%emt 0:00:11]} 34. Qf4 {[%emt 0:00:38]} f6 {[%emt 0:00:54]} 35. Bd4 {[%emt 0:00:43]} Bd5 {[%emt 0:00:33]} 36. Qg4 {[%emt 0:00:59]} Qc2 {[%emt 0:00:11]} 37. Qh5+ {[%emt 0:00:24]} Qh7 {[%emt 0:00:14]} 38. Qxh7+ {[%emt 0:01:05]} Kxh7 {[%emt 0:00:01]} 39. Kf2 {[%emt 0:00:12]} Kg6 {[%emt 0:00:02]} 40. g3 {[%emt 0:00:21]} Kf5 {[%emt 0:00:04]} 41. Ke3 {[%emt 0:00:40] Ke5 Ke4+} 1/2-1/2

[Event "XXXI Torre Memorial 2019"]
[Site "Merida"]
[Date "2019.12.16"]
[Round "5.14"]
[White "Gonzalez Zamora, Juan Carlos"]
[Black "Perez Garcia, Rodney Oscar"]
[Result "1-0"]
[ECO "A06"]
[WhiteElo "2535"]
[BlackElo "2341"]
[Annotator "ChessBase"]
[PlyCount "175"]
[EventDate "2019.12.13"]
[EventType "swiss"]
[EventCountry "MEX"]
[SourceTitle "playchess.com"]
[Source "ChessBase"]
[SourceQuality "1"]
[TimeControl "5400+30"]

1. Nf3 {[%emt 0:02:58]} d5 {[%emt 0:00:00]} 2. g3 {[%emt 0:00:37]} Nf6 {[%emt 0:00:04]} 3. Bg2 {[%emt 0:00:04]} e6 {[%emt 0:00:23]} 4. O-O {[%emt 0:00:11]} Be7 {[%emt 0:00:18]} 5. c4 {[%emt 0:01:07]} O-O {[%emt 0:00:19]} 6. Ne5 {[%emt 0:00:08]} c5 {[%emt 0:03:29]} 7. d3 {[%emt 0:02:11]} Nbd7 {[%emt 0:02:54]} 8. Nf3 {[%emt 0:00:12]} b6 {[%emt 0:02:35]} 9. Nc3 {[%emt 0:01:12]} Bb7 {[%emt 0:00:44]} 10. Re1 {[%emt 0:02:18]} dxc4 {[%emt 0:12:48]} 11. dxc4 {[%emt 0:00:50]} Ne4 {[%emt 0:00:34]} 12. Nxe4 {[%emt 0:05:51]} Bxe4 {[%emt 0:00:12]} 13. Qa4 {[%emt 0:00:01]} Qc7 {[%emt 0:09:03]} 14. Bf4 {[%emt 0:06:21]} Qb7 {[%emt 0:01:49]} 15. Red1 {[%emt 0:00:12]} Rfd8 {[%emt 0:02:42]} 16. Rd2 {[%emt 0:01:12]} Nf6 {[%emt 0:03:37]} 17. Rad1 {[%emt 0:01:26]} Rxd2 {[%emt 0:03:59]} 18. Rxd2 {[%emt 0:01:36]} Rd8 {[%emt 0:00:05]} 19. Rxd8+ {[%emt 0:00:39]} Bxd8 {[%emt 0:00:02]} 20. Qd1 {[%emt 0:02:14]} Be7 {[%emt 0:01:09]} 21. Ne1 {[%emt 0:00:20]} Bxg2 {[%emt 0:09:15]} 22. Nxg2 {[%emt 0:00:15]} Kf8 {[%emt 0:02:52]} 23. Ne1 {[%emt 0:00:52]} Qe4 {[%emt 0:05:08]} 24. b3 {[%emt 0:00:41]} Ke8 {[%emt 0:02:05]} 25. f3 {[%emt 0:02:02]} Qc6 {[%emt 0:01:02]} 26. Be5 {[%emt 0:00:24]} g6 {[%emt 0:00:42]} 27. Qd2 {[%emt 0:09:56]} Nd7 {[%emt 0:00:53]} 28. Nd3 {[%emt 0:00:46]} Nxe5 {[%emt 0:02:08]} 29. Nxe5 {[%emt 0:00:12]} Qc7 {[%emt 0:00:14]} 30. f4 {[%emt 0:03:15]} Bf6 {[%emt 0:01:25]} 31. Nf3 {[%emt 0:00:06]} h5 {[%emt 0:04:15]} 32. e4 {[%emt 0:04:12]} Qc6 {[%emt 0:04:53]} 33. Qd3 {[%emt 0:01:06]} a6 {[%emt 0:01:31]} 34. e5 {[%emt 0:00:23]} Be7 {[%emt 0:00:43]} 35. Kf2 {[%emt 0:00:13]} b5 {[%emt 0:00:48]} 36. Ke3 {[%emt 0:00:13]} b4 {[%emt 0:09:58]} 37. h3 {[%emt 0:04:29]} Qc7 {[%emt 0:02:27]} 38. Qd2 {[%emt 0:02:23]} Bd8 {[%emt 0:05:16]} 39. Qc2 {[%emt 0:03:44]} Qd7 {[%emt 0:00:57]} 40. g4 {[%emt 0:00:21]} hxg4 {[%emt 0:00:05]} 41. hxg4 {[%emt 0:00:07]} Be7 {[%emt 0:00:28]} 42. Qe4 {[%emt 0:01:04]} Qd1 {[%emt 0:01:54]} 43. Kf2 {[%emt 0:04:50]} Qh1 {[%emt 0:01:21]} 44. g5 {[%emt 0:00:56]} Kf8 {[%emt 0:02:33]} 45. Qa8+ {[%emt 0:04:52]} Kg7 {[%emt 0:00:01]} 46. Qxa6 {[%emt 0:00:22]} Qc1 {[%emt 0:00:10]} 47. Kg3 {[%emt 0:00:56]} Qb2 {[%emt 0:00:14]} 48. Qa8 {[%emt 0:00:39]} Bf8 {[%emt 0:00:30]} 49. Nh2 {[%emt 0:00:39]} Qc3+ {[%emt 0:01:52]} 50. Qf3 {[%emt 0:00:44]} Qe1+ {[%emt 0:00:21]} 51. Qf2 {[%emt 0:00:15]} Qc3+ {[%emt 0:00:17]} 52. Nf3 {[%emt 0:02:21]} Be7 {[%emt 0:00:21]} 53. Qd2 {[%emt 0:00:18]} Qa1 {[%emt 0:00:04]} 54. Kg2 {[%emt 0:02:47]} Qb1 {[%emt 0:00:03]} 55. Nh2 {[%emt 0:03:54]} Qe4+ {[%emt 0:00:59]} 56. Kg3 {[%emt 0:00:20]} Qb1 {[%emt 0:00:12]} 57. Ng4 {[%emt 0:00:31]} Qg1+ {[%emt 0:00:18]} 58. Qg2 {[%emt 0:01:01]} Qe1+ {[%emt 0:00:13]} 59. Qf2 {[%emt 0:00:35]} Qb1 {[%emt 0:00:45]} 60. Ne3 {[%emt 0:00:20]} Qd3 {[%emt 0:00:47]} 61. Kf3 {[%emt 0:00:38]} Qb1 {[%emt 0:00:06]} 62. Qh2 {[%emt 0:01:13]} Qa1 {[%emt 0:00:28]} 63. Qg2 {[%emt 0:02:03]} Qb1 {[%emt 0:00:25]} 64. Qd2 {[%emt 0:04:05]} Qh1+ {[%emt 0:00:12]} 65. Kg3 {[%emt 0:00:21]} Qg1+ {[%emt 0:00:14]} 66. Ng2 {[%emt 0:00:05]} Qa1 {[%emt 0:00:49]} 67. Ne1 {[%emt 0:00:50]} Qb1 {[%emt 0:00:20]} 68. Nd3 {[%emt 0:00:32]} Qg1+ {[%emt 0:00:32]} 69. Kf3 {[%emt 0:00:11]} Qf1+ {[%emt 0:00:19]} 70. Ke3 {[%emt 0:00:25]} Qa1 {[%emt 0:00:20]} 71. Ke2 {[%emt 0:01:27]} Qg1 {[%emt 0:00:42]} 72. Qe1 {[%emt 0:00:39]} Qd4 {[%emt 0:00:30]} 73. Qc1 {[%emt 0:00:33]} Bf8 {[%emt 0:00:59]} 74. a4 {[%emt 0:01:01]} bxa3 {[%emt 0:00:05]} 75. Qxa3 {[%emt 0:00:05]} Qg1 {[%emt 0:00:37]} 76. Qc1 {[%emt 0:00:37]} Qg2+ {[%emt 0:01:00]} 77. Nf2 {[%emt 0:00:39]} Be7 {[%emt 0:00:10]} 78. Qe3 {[%emt 0:00:45]} Qa8 {[%emt 0:00:21]} 79. Qd2 {[%emt 0:00:38]} Qa3 {[%emt 0:00:42]} 80. Qc2 {[%emt 0:00:19]} Bd8 {[%emt 0:00:35]} 81. Nd3 {[%emt 0:00:39]} Qa8 {[%emt 0:01:16]} 82. Nf2 {[%emt 0:02:56]} Ba5 {[%emt 0:00:29]} 83. Ne4 {[%emt 0:01:18]} Bb4 {[%emt 0:00:29]} 84. Qb1 {[%emt 0:00:12]} Qh8 {[%emt 0:00:13]} 85. Ng3 {[%emt 0:05:00]} Qh2+ {[%emt 0:00:52]} 86. Kf3 {[%emt 0:00:08]} Bc3 {[%emt 0:00:37]} 87. Qh1 {[%emt 0:00:31]} Qc2 {[%emt 0:00:37]} 88. Ne4 {[%emt 0:00:25]} 1-0

[Event "XXXI Torre Memorial 2019"]
[Site "Merida"]
[Date "2019.12.16"]
[Round "5.15"]
[White "Fernandez Guillen, Ernesto J."]
[Black "Fernandez Mayola, Reynold Rafael"]
[Result "1-0"]
[ECO "C54"]
[WhiteElo "2407"]
[BlackElo "2328"]
[Annotator "NA"]
[PlyCount "115"]
[EventDate "2019.12.13"]
[EventType "swiss"]
[EventCountry "MEX"]
[SourceTitle "playchess.com"]
[Source "ChessBase"]
[SourceQuality "1"]
[TimeControl "5400+30"]

1. e4 {[%emt 0:03:55]} e5 {[%emt 0:00:00]} 2. Nf3 {[%emt 0:00:06]} Nc6 {[%emt 0:00:00]} 3. Bc4 {[%emt 0:00:04]} Bc5 {[%emt 0:00:00]} 4. c3 {[%emt 0:00:06]} Nf6 {[%emt 0:00:00]} 5. d3 {[%emt 0:00:03]} d6 {[%emt 0:01:50]} 6. Nbd2 {[%emt 0:01:29]} a5 {[%emt 0:00:17]} 7. Bb5 {[%emt 0:01:50]} O-O {[%emt 0:01:41]} 8. O-O {[%emt 0:01:38]} Na7 {[%emt 0:17:39]} 9. Ba4 {[%emt 0:02:01]} b5 {[%emt 0:00:01]} 10. Bc2 {[%emt 0:00:11]} Nc6 11. h3 {[%emt 0:05:04]} h6 {[%emt 0:14:15]} 12. a4 {[%emt 0:02:03]} b4 {[%emt 0:00:07]} 13. Nb3 {[%emt 0:00:26]} Bb6 {[%emt 0:00:15]} 14. d4 {[%emt 0:01:21]} Ba6 {[%emt 0:01:15]} 15. Re1 {[%emt 0:08:43]} bxc3 {[%emt 0:11:14]} 16. bxc3 {[%emt 0:02:07]} exd4 {[%emt 0:00:05]} 17. Nfxd4 {[%emt 0:02:20]} Ne7 {[%emt 0:06:48]} 18. Qf3 {[%emt 0:05:56]} c5 {[%emt 0:00:09]} 19. Ne2 {[%emt 0:03:30]} Ng6 {[%emt 0:02:54]} 20. Nf4 {[%emt 0:03:27]} Ne5 {[%emt 0:05:13]} 21. Qg3 {[%emt 0:05:05]} Kh8 {[%emt 0:00:01]} 22. Nd2 {[%emt 0:01:36]} Re8 {[%emt 0:05:05]} 23. c4 {[%emt 0:25:11]} Nc6 {[%emt 0:01:51]} 24. Bb2 {[%emt 0:03:39]} Nd4 {[%emt 0:01:24]} 25. Bd3 {[%emt 0:00:02]} Rb8 {[%emt 0:06:07]} 26. Bc3 {[%emt 0:03:21]} Qd7 {[%emt 0:17:51]} 27. Nd5 {[%emt 0:10:45]} Bd8 {[%emt 0:00:47]} 28. f4 {[%emt 0:03:15]} Nxd5 {[%emt 0:02:51]} 29. cxd5 {[%emt 0:00:17]} Bxd3 {[%emt 0:00:12]} 30. Qxd3 {[%emt 0:00:02]} Bh4 {[%emt 0:01:05]} 31. Reb1 {[%emt 0:03:42]} Bf6 {[%emt 0:01:26]} 32. Nc4 {[%emt 0:01:23]} Ne2+ {[%emt 0:00:38]} 33. Qxe2 {[%emt 0:00:01]} Bxc3 {[%emt 0:00:08]} 34. Rxb8 {[%emt 0:00:15]} Rxb8 {[%emt 0:00:09]} 35. Rc1 {[%emt 0:00:30]} Bd4+ {[%emt 0:00:22]} 36. Kh2 {[%emt 0:00:15]} f5 {[%emt 0:00:10]} 37. Nxa5 {[%emt 0:01:51]} Re8 {[%emt 0:01:29]} 38. Qb5 {[%emt 0:00:45]} Qxb5 {[%emt 0:01:42]} 39. axb5 {[%emt 0:00:02]} fxe4 {[%emt 0:00:47]} 40. b6 {[%emt 0:00:44]} e3 {[%emt 0:00:10]} 41. b7 {[%emt 0:00:31]} e2 {[%emt 0:00:07]} 42. Re1 {[%emt 0:00:23]} Bc3 {[%emt 0:00:59]} 43. Rxe2 {[%emt 0:00:02]} Rb8 {[%emt 0:00:05]} 44. Nc4 {[%emt 0:00:07]} Rxb7 {[%emt 0:00:08]} 45. Nxd6 {[%emt 0:00:07]} Rd7 {[%emt 0:00:25]} 46. Nb5 {[%emt 0:01:33]} Bb4 {[%emt 0:00:38]} 47. Re5 {[%emt 0:01:01]} c4 {[%emt 0:00:37]} 48. Kg3 Rb7 49. Nd4 {[%emt 0:00:55]} Bc3 {[%emt 0:02:58]} 50. Re8+ {[%emt 0:00:01]} Kh7 {[%emt 0:00:06]} 51. Ne6 {[%emt 0:00:36]} Bb4 {[%emt 0:00:38]} 52. Kf3 {[%emt 0:00:27]} c3 {[%emt 0:00:01]} 53. Rc8 {[%emt 0:00:08]} Ra7 {[%emt 0:00:45]} 54. Rc4 {[%emt 0:00:56]} Ra1 {[%emt 0:00:51]} 55. Rxb4 {[%emt 0:00:25]} c2 {[%emt 0:00:09]} 56. Rc4 {[%emt 0:00:03]} c1=Q {[%emt 0:00:16]} 57. Rxc1 {[%emt 0:00:05]} Rxc1 {[%emt 0:00:05]} 58. Ke4 1-0

[Event "XXXI Torre Memorial 2019"]
[Site "Merida"]
[Date "2019.12.16"]
[Round "5.16"]
[White "Ochoa de la Rosa, Manuel Dario"]
[Black "Martin Del Campo C., Roberto"]
[Result "0-1"]
[ECO "E71"]
[WhiteElo "2403"]
[BlackElo "2314"]
[Annotator "NA"]
[PlyCount "104"]
[EventDate "2019.12.13"]
[EventType "swiss"]
[EventCountry "MEX"]
[SourceTitle "playchess.com"]
[Source "ChessBase"]
[SourceQuality "1"]
[TimeControl "5400+30"]

1. d4 {[%emt 0:00:36]} Nf6 {[%emt 0:00:00]} 2. c4 {[%emt 0:00:12]} d6 {[%emt 0:00:00]} 3. Nc3 {[%emt 0:02:09]} g6 {[%emt 0:01:58]} 4. e4 {[%emt 0:00:56]} Bg7 {[%emt 0:00:03]} 5. h3 {[%emt 0:04:52]} O-O {[%emt 0:01:16]} 6. Be3 {[%emt 0:00:07]} e5 {[%emt 0:02:00]} 7. d5 {[%emt 0:01:04]} c6 {[%emt 0:00:44]} 8. g4 {[%emt 0:02:58]} a6 {[%emt 0:00:59]} 9. Nge2 {[%emt 0:03:31]} b5 {[%emt 0:04:04]} 10. Ng3 {[%emt 0:00:12]} bxc4 {[%emt 0:14:40]} 11. Bxc4 {[%emt 0:00:11]} c5 {[%emt 0:02:29]} 12. Qd2 {[%emt 0:00:54]} Nbd7 {[%emt 0:00:42]} 13. f3 {[%emt 0:06:17]} Rb8 {[%emt 0:02:22]} 14. a3 {[%emt 0:04:34]} Qa5 {[%emt 0:04:39]} 15. h4 {[%emt 0:05:24]} Nb6 {[%emt 0:02:16]} 16. Bb3 {[%emt 0:00:33]} c4 {[%emt 0:10:29]} 17. Bc2 {[%emt 0:00:29]} Nbd7 {[%emt 0:00:27]} 18. Na4 {[%emt 0:01:51]} Qc7 {[%emt 0:05:14]} 19. h5 {[%emt 0:01:15]} a5 {[%emt 0:01:51]} 20. g5 {[%emt 0:12:55]} Nxh5 {[%emt 0:04:21]} 21. Nxh5 {[%emt 0:01:45]} gxh5 {[%emt 0:00:20]} 22. Qh2 {[%emt 0:00:02]} Re8 {[%emt 0:00:14]} 23. Qxh5 {[%emt 0:00:08]} Nf8 {[%emt 0:00:05]} 24. Rb1 {[%emt 0:04:25]} Bd7 {[%emt 0:01:28]} 25. Nc3 {[%emt 0:00:01]} Rb7 {[%emt 0:00:11]} 26. Nd1 {[%emt 0:09:31]} Reb8 {[%emt 0:01:46]} 27. Rc1 {[%emt 0:00:04]} Qd8 {[%emt 0:17:07]} 28. Bd2 {[%emt 0:03:44]} Be8 {[%emt 0:03:42]} 29. Qh4 {[%emt 0:01:12]} f6 {[%emt 0:01:36]} 30. Nf2 {[%emt 0:02:59]} Rxb2 {[%emt 0:02:13]} 31. Ng4 {[%emt 0:00:21]} c3 {[%emt 0:00:41]} 32. Be3 {[%emt 0:00:20]} fxg5 {[%emt 0:00:27]} 33. Bxg5 {[%emt 0:00:06]} Qb6 {[%emt 0:00:07]} 34. Bh6 {[%emt 0:04:03]} Rb7 {[%emt 0:02:51]} 35. Qg5 {[%emt 0:06:00]} Kh8 {[%emt 0:02:42]} 36. Nf6 {[%emt 0:01:09]} Bg6 {[%emt 0:00:51]} 37. Ng4 {[%emt 0:01:22]} Rf7 {[%emt 0:01:11]} 38. Bxg7+ {[%emt 0:00:06]} Kxg7 {[%emt 0:00:54]} 39. Ne3 {[%emt 0:04:34]} Rxf3 {[%emt 0:01:34]} 40. Nf5+ {[%emt 0:04:49]} Kg8 {[%emt 0:00:02]} 41. Rh2 {[%emt 0:00:02]} Qa6 {[%emt 0:04:42]} 42. Re2 {[%emt 0:00:57]} Qb6 {[%emt 0:00:50]} 43. Qg2 {[%emt 0:03:35]} Rf4 {[%emt 0:00:31]} 44. Qg3 {[%emt 0:00:02]} Rxc2 {[%emt 0:01:13]} 45. Rexc2 {[%emt 0:00:44]} Rxe4+ {[%emt 0:00:03]} 46. Kd1 {[%emt 0:00:39]} Kh8 {[%emt 0:00:43]} 47. Rg2 {[%emt 0:00:46]} Qb3+ {[%emt 0:00:37]} 48. Rcc2 {[%emt 0:00:07]} Bh5+ {[%emt 0:00:46]} 49. Kc1 {[%emt 0:00:03]} Qxa3+ {[%emt 0:00:17]} 50. Kb1 {[%emt 0:00:02]} Rb4+ {[%emt 0:00:03]} 51. Rb2 {[%emt 0:00:12]} Rxb2+ {[%emt 0:00:01]} 52. Rxb2 {[%emt 0:00:03]} Qxb2# {[%emt 0:00:01]} 0-1